[Event "*** SCC Grand Prix: Titled Tuesday Blitz"]
[Site "Chess.com"]
[Date "2020.07.21"]
[Round "3"]
[White "InitiatingASC"]
[Black "Shubinkirill2003"]
[Result "0-1"]
[WhiteElo "2354"]
[BlackElo "2659"]
[TimeControl "180+1"]
[EndTime "10:27:32 PDT"]
[Termination "Shubinkirill2003 won by checkmate"]

1. Nf3 {[%clk 0:03:00.9]} 1... Nf6 {[%clk 0:02:59.9]} 2. c4 {[%clk 0:03:00.2]}
2... b6 {[%clk 0:02:59.9]} 3. g3 {[%clk 0:03:00.1]} 3... Bb7 {[%clk 0:03:00]} 4.
Bg2 {[%clk 0:03:00.7]} 4... e6 {[%clk 0:02:59.9]} 5. O-O {[%clk 0:03:00.7]} 5...
Be7 {[%clk 0:03:00.2]} 6. d3 {[%clk 0:03:01.1]} 6... d5 {[%clk 0:02:59.3]} 7.
Nbd2 {[%clk 0:03:00.5]} 7... O-O {[%clk 0:02:58.5]} 8. Rb1 {[%clk 0:03:00.4]}
8... c5 {[%clk 0:02:57.5]} 9. cxd5 {[%clk 0:02:54.8]} 9... exd5 {[%clk
0:02:54.9]} 10. b3 {[%clk 0:02:55]} 10... d4 {[%clk 0:02:45.7]} 11. a3 {[%clk
0:02:50.9]} 11... Nc6 {[%clk 0:02:44.8]} 12. Nc4 {[%clk 0:02:48.2]} 12... Nd5
{[%clk 0:02:41]} 13. Qc2 {[%clk 0:02:41.6]} 13... Nc3 {[%clk 0:02:24.2]} 14. Ra1
{[%clk 0:02:27.8]} 14... b5 {[%clk 0:02:24]} 15. Ncd2 {[%clk 0:02:19.1]} 15...
Nxe2+ {[%clk 0:02:22.2]} 16. Kh1 {[%clk 0:02:18.3]} 16... Nc3 {[%clk 0:02:16.6]}
17. Re1 {[%clk 0:02:15]} 17... Re8 {[%clk 0:02:11.8]} 18. Bb2 {[%clk 0:02:15.3]}
18... b4 {[%clk 0:02:11.3]} 19. Nc4 {[%clk 0:02:12.3]} 19... Qc7 {[%clk
0:01:56]} 20. Bc1 {[%clk 0:02:11]} 20... Nd5 {[%clk 0:01:45.4]} 21. Bd2 {[%clk
0:02:07.8]} 21... Bf6 {[%clk 0:01:41.8]} 22. a4 {[%clk 0:01:53.8]} 22... Nce7
{[%clk 0:01:31.4]} 23. Ng5 {[%clk 0:01:49.8]} 23... Bxg5 {[%clk 0:01:26.5]} 24.
Bxg5 {[%clk 0:01:48.7]} 24... Ng6 {[%clk 0:01:26.5]} 25. Qd2 {[%clk 0:01:37]}
25... h6 {[%clk 0:01:19.8]} 26. Bxh6 {[%clk 0:01:29.2]} 26... gxh6 {[%clk
0:01:20.7]} 27. Qxh6 {[%clk 0:01:29.4]} 27... Nf6 {[%clk 0:01:11.9]} 28. h4
{[%clk 0:01:23.4]} 28... Rxe1+ {[%clk 0:00:52]} 29. Rxe1 {[%clk 0:01:21.6]}
29... Bxg2+ {[%clk 0:00:47.4]} 30. Kxg2 {[%clk 0:01:22.5]} 30... Qc6+ {[%clk
0:00:42.8]} 31. Kg1 {[%clk 0:01:19.2]} 31... Qd5 {[%clk 0:00:42.5]} 32. f4
{[%clk 0:00:46.8]} 32... Qf3 {[%clk 0:00:33.2]} 33. Qg5 {[%clk 0:00:19.9]} 33...
Nh7 {[%clk 0:00:31.5]} 34. Qh6 {[%clk 0:00:12]} 34... Qxg3+ {[%clk 0:00:30.9]}
35. Kf1 {[%clk 0:00:12.6]} 35... Qf3+ {[%clk 0:00:29.1]} 36. Kg1 {[%clk
0:00:12.8]} 36... Nxf4 {[%clk 0:00:29.1]} 37. Re5 {[%clk 0:00:11.3]} 37... Qg2#
{[%clk 0:00:28.3]} 0-1

[Event "*** SCC Grand Prix: Titled Tuesday Blitz"]
[Site "Chess.com"]
[Date "2020.07.21"]
[Round "3"]
[White "Trickov"]
[Black "Ermito2020"]
[Result "1/2-1/2"]
[WhiteElo "2363"]
[BlackElo "2576"]
[TimeControl "180+1"]
[EndTime "10:27:32 PDT"]
[Termination "Game drawn by repetition"]

1. d4 {[%clk 0:02:54.5]} 1... d5 {[%clk 0:02:59.2]} 2. Nf3 {[%clk 0:02:54.6]}
2... Nf6 {[%clk 0:02:58.9]} 3. c4 {[%clk 0:02:53.9]} 3... e6 {[%clk 0:02:59.2]}
4. g3 {[%clk 0:02:53.4]} 4... dxc4 {[%clk 0:02:57.8]} 5. Qa4+ {[%clk 0:02:51]}
5... Nbd7 {[%clk 0:02:34]} 6. Bg2 {[%clk 0:02:48.3]} 6... a6 {[%clk 0:02:31.5]}
7. Qxc4 {[%clk 0:02:47.4]} 7... b5 {[%clk 0:02:31]} 8. Qc2 {[%clk 0:02:47.4]}
8... Bb7 {[%clk 0:02:30.7]} 9. O-O {[%clk 0:02:47.6]} 9... Be7 {[%clk
0:02:30.3]} 10. Rd1 {[%clk 0:02:47.3]} 10... O-O {[%clk 0:02:29.7]} 11. a3
{[%clk 0:02:38.6]} 11... Qc8 {[%clk 0:02:09.6]} 12. Bg5 {[%clk 0:02:12.5]} 12...
c5 {[%clk 0:02:05.7]} 13. dxc5 {[%clk 0:02:04]} 13... Nxc5 {[%clk 0:02:00.7]}
14. Nc3 {[%clk 0:01:59.7]} 14... Nce4 {[%clk 0:01:57.8]} 15. Rac1 {[%clk
0:01:50.8]} 15... Nxg5 {[%clk 0:01:12.8]} 16. Nxg5 {[%clk 0:01:48.4]} 16... Bxg2
{[%clk 0:01:13.4]} 17. Kxg2 {[%clk 0:01:47.5]} 17... Qb7+ {[%clk 0:01:13.6]} 18.
Nf3 {[%clk 0:01:42.6]} 18... Rac8 {[%clk 0:01:13.5]} 19. Qb3 {[%clk 0:01:27]}
19... h6 {[%clk 0:01:03.9]} 20. Kg1 {[%clk 0:01:25.5]} 20... Ne4 {[%clk
0:01:01.1]} 21. Nxe4 {[%clk 0:01:18.1]} 21... Qxe4 {[%clk 0:01:02]} 22. Qd3
{[%clk 0:00:56.3]} 22... Qxd3 {[%clk 0:00:57.7]} 23. exd3 {[%clk 0:00:52.4]}
23... Bf6 {[%clk 0:00:57.4]} 24. b3 {[%clk 0:00:47.4]} 24... Rfd8 {[%clk
0:00:54.3]} 25. Rxc8 {[%clk 0:00:44.1]} 25... Rxc8 {[%clk 0:00:54]} 26. d4
{[%clk 0:00:41.2]} 26... Rc3 {[%clk 0:00:52.6]} 27. Ne5 {[%clk 0:00:37.3]} 27...
Rxb3 {[%clk 0:00:50.7]} 28. Nd7 {[%clk 0:00:36.4]} 28... Rxa3 {[%clk 0:00:48.7]}
29. d5 {[%clk 0:00:33.2]} 29... exd5 {[%clk 0:00:41.6]} 30. Rxd5 {[%clk
0:00:30.3]} 30... b4 {[%clk 0:00:41]} 31. Rd6 {[%clk 0:00:23.1]} 31... b3 {[%clk
0:00:36.8]} 32. Rb6 {[%clk 0:00:23.1]} 32... a5 {[%clk 0:00:34.9]} 33. Rb8+
{[%clk 0:00:19.1]} 33... Kh7 {[%clk 0:00:32.1]} 34. Nf8+ {[%clk 0:00:19.2]}
34... Kg8 {[%clk 0:00:31.6]} 35. Nd7+ {[%clk 0:00:19.8]} 35... Kh7 {[%clk
0:00:29.9]} 36. Nf8+ {[%clk 0:00:20]} 36... Kg8 {[%clk 0:00:28.2]} 37. Nd7+
{[%clk 0:00:20.6]} 1/2-1/2

[Event "*** SCC Grand Prix: Titled Tuesday Blitz"]
[Site "Chess.com"]
[Date "2020.07.21"]
[Round "3"]
[White "vitnik2020"]
[Black "arminmusovic"]
[Result "1-0"]
[WhiteElo "2325"]
[BlackElo "2539"]
[TimeControl "180+1"]
[EndTime "10:27:34 PDT"]
[Termination "vitnik2020 won by resignation"]

1. d4 {[%clk 0:03:00.9]} 1... d5 {[%clk 0:03:00.1]} 2. c4 {[%clk 0:02:59.2]}
2... c5 {[%clk 0:03:00.5]} 3. cxd5 {[%clk 0:02:56.9]} 3... e6 {[%clk 0:03:00.7]}
4. dxe6 {[%clk 0:02:54.1]} 4... Bxe6 {[%clk 0:03:01.6]} 5. Nf3 {[%clk
0:02:53.5]} 5... Nc6 {[%clk 0:03:00.8]} 6. e3 {[%clk 0:02:51.6]} 6... a6 {[%clk
0:03:00.6]} 7. Nc3 {[%clk 0:02:49.8]} 7... Nf6 {[%clk 0:03:00.7]} 8. Ng5 {[%clk
0:02:30]} 8... cxd4 {[%clk 0:02:39.8]} 9. Nxe6 {[%clk 0:02:27.8]} 9... fxe6
{[%clk 0:02:40.7]} 10. exd4 {[%clk 0:02:27.1]} 10... Qxd4 {[%clk 0:02:27.8]} 11.
Qb3 {[%clk 0:01:59.6]} 11... Qe5+ {[%clk 0:01:31.9]} 12. Be3 {[%clk 0:01:39.1]}
12... O-O-O {[%clk 0:01:24.8]} 13. Be2 {[%clk 0:01:32.1]} 13... Bd6 {[%clk
0:01:09.6]} 14. g3 {[%clk 0:01:07.1]} 14... Nd5 {[%clk 0:01:05.2]} 15. Nxd5
{[%clk 0:01:03]} 15... exd5 {[%clk 0:01:03.2]} 16. O-O {[%clk 0:00:54.2]} 16...
h5 {[%clk 0:00:58.5]} 17. Bxa6 {[%clk 0:00:43.2]} 17... bxa6 {[%clk 0:00:48.9]}
18. Rfc1 {[%clk 0:00:42.6]} 18... Kd7 {[%clk 0:00:19.6]} 19. Qb7+ {[%clk
0:00:40]} 19... Ke6 {[%clk 0:00:18.6]} 20. Rxc6 {[%clk 0:00:39]} 20... Rb8
{[%clk 0:00:18]} 21. Qxa6 {[%clk 0:00:32.5]} 21... g5 {[%clk 0:00:18.4]} 22. Re1
{[%clk 0:00:26.9]} 22... Kf5 {[%clk 0:00:16.5]} 23. Rxd6 {[%clk 0:00:21]} 23...
Rhf8 {[%clk 0:00:14.4]} 24. Qc6 {[%clk 0:00:19.5]} 24... Kg4 {[%clk 0:00:09.5]}
25. Qxd5 {[%clk 0:00:16.1]} 25... Qxd5 {[%clk 0:00:07.2]} 26. Rxd5 {[%clk
0:00:15.7]} 26... Rxb2 {[%clk 0:00:06.9]} 27. Kg2 {[%clk 0:00:15]} 1-0

[Event "*** SCC Grand Prix: Titled Tuesday Blitz"]
[Site "Chess.com"]
[Date "2020.07.21"]
[Round "3"]
[White "Paladin61"]
[Black "LPSupi"]
[Result "0-1"]
[WhiteElo "2619"]
[BlackElo "2875"]
[TimeControl "180+1"]
[EndTime "10:27:36 PDT"]
[Termination "LPSupi won on time"]

1. b3 {[%clk 0:02:59.6]} 1... e5 {[%clk 0:02:18.6]} 2. Bb2 {[%clk 0:02:59.4]}
2... d6 {[%clk 0:02:19.1]} 3. e3 {[%clk 0:02:59]} 3... Nf6 {[%clk 0:02:19.1]} 4.
Ne2 {[%clk 0:02:52.8]} 4... g6 {[%clk 0:02:18.6]} 5. d4 {[%clk 0:02:49.2]} 5...
Bg7 {[%clk 0:02:19]} 6. dxe5 {[%clk 0:02:45.2]} 6... Ng4 {[%clk 0:02:18.2]} 7.
Nbc3 {[%clk 0:02:33.6]} 7... Nxe5 {[%clk 0:02:14.9]} 8. Qd2 {[%clk 0:02:30.2]}
8... O-O {[%clk 0:02:12.7]} 9. O-O-O {[%clk 0:02:30]} 9... a5 {[%clk 0:02:13]}
10. Kb1 {[%clk 0:02:23.6]} 10... a4 {[%clk 0:02:10.9]} 11. f4 {[%clk 0:02:05.1]}
11... Ng4 {[%clk 0:02:03.4]} 12. Nd4 {[%clk 0:02:01.6]} 12... Re8 {[%clk
0:01:58.4]} 13. e4 {[%clk 0:01:54.5]} 13... axb3 {[%clk 0:01:50.9]} 14. axb3
{[%clk 0:01:54.1]} 14... c6 {[%clk 0:01:50.5]} 15. h3 {[%clk 0:01:34.3]} 15...
Nf6 {[%clk 0:01:48.6]} 16. Bd3 {[%clk 0:01:34.1]} 16... Qa5 {[%clk 0:01:38.3]}
17. Rhe1 {[%clk 0:01:28.8]} 17... Nbd7 {[%clk 0:01:37.3]} 18. g4 {[%clk
0:01:02]} 18... Nc5 {[%clk 0:01:33.1]} 19. e5 {[%clk 0:00:51.2]} 19... dxe5
{[%clk 0:01:28.6]} 20. fxe5 {[%clk 0:00:36]} 20... Nd5 {[%clk 0:00:47.1]} 21.
Nf3 {[%clk 0:00:27]} 21... Nxd3 {[%clk 0:00:38.6]} 22. Qxd3 {[%clk 0:00:24.9]}
22... Be6 {[%clk 0:00:35.2]} 23. Ne4 {[%clk 0:00:23.3]} 23... Red8 {[%clk
0:00:32.6]} 24. Nd4 {[%clk 0:00:13.8]} 24... Bxe5 {[%clk 0:00:29.9]} 25. Nd2
{[%clk 0:00:05.5]} 25... Nb4 {[%clk 0:00:25.3]} 0-1

[Event "*** SCC Grand Prix: Titled Tuesday Blitz"]
[Site "Chess.com"]
[Date "2020.07.21"]
[Round "3"]
[White "kleopl"]
[Black "giantslayer83"]
[Result "0-1"]
[WhiteElo "2428"]
[BlackElo "2728"]
[TimeControl "180+1"]
[EndTime "10:27:37 PDT"]
[Termination "giantslayer83 won by resignation"]

1. c4 {[%clk 0:03:00.9]} 1... e6 {[%clk 0:02:58.5]} 2. Nc3 {[%clk 0:03:00.1]}
2... d5 {[%clk 0:02:58.6]} 3. cxd5 {[%clk 0:03:00.4]} 3... exd5 {[%clk
0:02:58.4]} 4. d4 {[%clk 0:03:01.3]} 4... c6 {[%clk 0:02:56.7]} 5. Qc2 {[%clk
0:02:58.2]} 5... Bd6 {[%clk 0:02:55.4]} 6. Nf3 {[%clk 0:02:56.6]} 6... Ne7
{[%clk 0:02:55.2]} 7. Bg5 {[%clk 0:02:55.8]} 7... f6 {[%clk 0:02:51.3]} 8. Bh4
{[%clk 0:02:55.4]} 8... Bf5 {[%clk 0:02:46.7]} 9. Qd2 {[%clk 0:02:54.6]} 9...
O-O {[%clk 0:02:45.2]} 10. e3 {[%clk 0:02:53.8]} 10... Kh8 {[%clk 0:02:42.9]}
11. Bd3 {[%clk 0:02:52.3]} 11... Qd7 {[%clk 0:02:40.9]} 12. Bg3 {[%clk
0:02:50.3]} 12... Bxd3 {[%clk 0:02:37.3]} 13. Qxd3 {[%clk 0:02:46.6]} 13... Na6
{[%clk 0:02:37.6]} 14. Bxd6 {[%clk 0:02:41]} 14... Qxd6 {[%clk 0:02:36.5]} 15.
a3 {[%clk 0:02:41.6]} 15... Nc7 {[%clk 0:02:32.6]} 16. O-O {[%clk 0:02:39]}
16... Ng6 {[%clk 0:02:32.4]} 17. b4 {[%clk 0:02:37]} 17... a6 {[%clk 0:02:31.8]}
18. Rab1 {[%clk 0:02:35.4]} 18... Nb5 {[%clk 0:02:19.3]} 19. a4 {[%clk
0:02:27.2]} 19... Na3 {[%clk 0:02:19.3]} 20. Rb3 {[%clk 0:02:21.7]} 20... Nc4
{[%clk 0:02:18.9]} 21. b5 {[%clk 0:02:21.8]} 21... a5 {[%clk 0:02:13.6]} 22. Nd2
{[%clk 0:02:15.9]} 22... Qe6 {[%clk 0:02:09.4]} 23. Rfb1 {[%clk 0:02:08.1]}
23... Nh4 {[%clk 0:02:07.9]} 24. Ne2 {[%clk 0:01:47.5]} 24... Nxd2 {[%clk
0:01:51]} 25. Qxd2 {[%clk 0:01:47.1]} 25... Qh3 {[%clk 0:01:49.2]} 26. gxh3
{[%clk 0:01:05.1]} 26... Nf3+ {[%clk 0:01:48.4]} 27. Kg2 {[%clk 0:01:05.4]}
27... Nxd2 {[%clk 0:01:49.3]} 28. bxc6 {[%clk 0:01:05.4]} 28... bxc6 {[%clk
0:01:49.1]} 29. Nf4 {[%clk 0:01:00.4]} 29... Nxb1 {[%clk 0:01:48.3]} 30. Rxb1
{[%clk 0:01:00]} 30... Rfb8 {[%clk 0:01:48.7]} 31. Rc1 {[%clk 0:01:00.1]} 31...
Rb6 {[%clk 0:01:47.2]} 32. Ne6 {[%clk 0:00:59.4]} 32... Kg8 {[%clk 0:01:46.3]}
33. Nc5 {[%clk 0:00:55.9]} 33... Kf7 {[%clk 0:01:46.5]} 34. Rc2 {[%clk
0:00:53.9]} 34... Ra7 {[%clk 0:01:44.6]} 35. Kf3 {[%clk 0:00:53.5]} 35... Rb1
{[%clk 0:01:36.8]} 36. Kg2 {[%clk 0:00:52]} 36... Ke7 {[%clk 0:01:35.9]} 37. h4
{[%clk 0:00:49.8]} 37... g6 {[%clk 0:01:32.3]} 38. Nd3 {[%clk 0:00:42.4]} 38...
Kd6 {[%clk 0:01:32.2]} 39. Nc5 {[%clk 0:00:42.3]} 39... Ra8 {[%clk 0:01:30.9]}
40. Rc3 {[%clk 0:00:32]} 40... Rab8 {[%clk 0:01:29.8]} 41. Rc2 {[%clk
0:00:29.9]} 41... R8b2 {[%clk 0:01:29.4]} 42. Rc3 {[%clk 0:00:29.8]} 42... Rd1
{[%clk 0:01:28.4]} 43. Nd3 {[%clk 0:00:14.7]} 43... Ra2 {[%clk 0:01:22.3]} 44.
Kf3 {[%clk 0:00:09.7]} 44... Rdd2 {[%clk 0:01:19.9]} 45. Rb3 {[%clk 0:00:08.1]}
45... Rxa4 {[%clk 0:01:18.4]} 46. Rc3 {[%clk 0:00:08]} 46... Raa2 {[%clk
0:01:17.1]} 47. Rb3 {[%clk 0:00:08.3]} 47... a4 {[%clk 0:01:17.2]} 48. Rc3
{[%clk 0:00:08.5]} 48... Rac2 {[%clk 0:01:17.3]} 49. Ra3 {[%clk 0:00:07.7]}
49... Ra2 {[%clk 0:01:14.9]} 50. Rc3 {[%clk 0:00:07.7]} 50... Rdc2 {[%clk
0:01:15.2]} 0-1

[Event "*** SCC Grand Prix: Titled Tuesday Blitz"]
[Site "Chess.com"]
[Date "2020.07.21"]
[Round "3"]
[White "MestreSoares"]
[Black "jonychess03"]
[Result "0-1"]
[WhiteElo "2066"]
[BlackElo "2320"]
[TimeControl "180+1"]
[EndTime "10:27:38 PDT"]
[Termination "jonychess03 won by resignation"]

1. Nf3 {[%clk 0:03:00.9]} 1... Nf6 {[%clk 0:02:59.9]} 2. b3 {[%clk 0:03:00.1]}
2... c5 {[%clk 0:02:58.7]} 3. e3 {[%clk 0:02:59.1]} 3... g6 {[%clk 0:02:58.9]}
4. Bb2 {[%clk 0:02:58.9]} 4... Bg7 {[%clk 0:02:59.4]} 5. Be2 {[%clk 0:02:59.4]}
5... O-O {[%clk 0:02:59.9]} 6. O-O {[%clk 0:02:59.9]} 6... Nc6 {[%clk
0:03:00.6]} 7. c4 {[%clk 0:02:59.5]} 7... d5 {[%clk 0:03:00.4]} 8. cxd5 {[%clk
0:02:58.9]} 8... Qxd5 {[%clk 0:03:01.3]} 9. Nc3 {[%clk 0:02:58.4]} 9... Qd7
{[%clk 0:02:52.3]} 10. Rc1 {[%clk 0:02:56.1]} 10... b6 {[%clk 0:02:51.1]} 11. d4
{[%clk 0:02:54.1]} 11... cxd4 {[%clk 0:02:48.6]} 12. Nxd4 {[%clk 0:02:50.6]}
12... Nxd4 {[%clk 0:02:48.2]} 13. exd4 {[%clk 0:02:51.1]} 13... Bb7 {[%clk
0:02:45.8]} 14. Qd3 {[%clk 0:02:45.2]} 14... Rac8 {[%clk 0:02:40]} 15. Rfd1
{[%clk 0:02:44.5]} 15... e6 {[%clk 0:02:39.6]} 16. Bf3 {[%clk 0:02:42.5]} 16...
Nd5 {[%clk 0:02:36.3]} 17. Nxd5 {[%clk 0:02:40.9]} 17... Bxd5 {[%clk 0:02:37.2]}
18. Bxd5 {[%clk 0:02:26.6]} 18... Qxd5 {[%clk 0:02:38.1]} 19. Rc4 {[%clk
0:02:21.1]} 19... b5 {[%clk 0:02:29.8]} 20. Rxc8 {[%clk 0:02:17.9]} 20... Rxc8
{[%clk 0:02:30.7]} 21. g3 {[%clk 0:01:56.1]} 21... h5 {[%clk 0:02:27.1]} 22. h4
{[%clk 0:01:52.5]} 22... a6 {[%clk 0:02:25.6]} 23. a4 {[%clk 0:01:45.3]} 23...
Rb8 {[%clk 0:02:12.3]} 24. Qc3 {[%clk 0:00:41.5]} 24... bxa4 {[%clk 0:02:06.9]}
25. bxa4 {[%clk 0:00:39.3]} 25... Rb3 {[%clk 0:02:06.9]} 26. Qc8+ {[%clk
0:00:33.7]} 26... Kh7 {[%clk 0:02:06.4]} 27. Ba1 {[%clk 0:00:31.8]} 27... e5
{[%clk 0:01:44.4]} 28. Qxa6 {[%clk 0:00:29.5]} 28... exd4 {[%clk 0:01:42.3]} 29.
Qa7 {[%clk 0:00:29.4]} 29... g5 {[%clk 0:01:26]} 30. hxg5 {[%clk 0:00:24.3]}
30... h4 {[%clk 0:01:19.7]} 31. g6+ {[%clk 0:00:19.1]} 31... Kxg6 {[%clk
0:01:14.7]} 32. Qa6+ {[%clk 0:00:18.5]} 32... Kh7 {[%clk 0:01:12.7]} 33. gxh4
{[%clk 0:00:18.5]} 33... Rh3 {[%clk 0:00:56.9]} 34. Kf1 {[%clk 0:00:18]} 34...
d3 {[%clk 0:00:54.3]} 35. Ke1 {[%clk 0:00:13.9]} 35... Qe4+ {[%clk 0:00:34.3]}
36. Kd2 {[%clk 0:00:10.9]} 36... Qe2+ {[%clk 0:00:33.3]} 0-1

[Event "*** SCC Grand Prix: Titled Tuesday Blitz"]
[Site "Chess.com"]
[Date "2020.07.21"]
[Round "3"]
[White "Mazetovic"]
[Black "boasovietica"]
[Result "1-0"]
[WhiteElo "2664"]
[BlackElo "2414"]
[TimeControl "180+1"]
[EndTime "10:27:39 PDT"]
[Termination "Mazetovic won on time"]

1. d4 {[%clk 0:03:00.8]} 1... Nf6 {[%clk 0:02:57.3]} 2. Nf3 {[%clk 0:03:00.4]}
2... g6 {[%clk 0:02:57.1]} 3. Bg5 {[%clk 0:02:58.6]} 3... Bg7 {[%clk 0:02:56.2]}
4. Nbd2 {[%clk 0:02:57.8]} 4... d5 {[%clk 0:02:55.2]} 5. e3 {[%clk 0:02:57]}
5... O-O {[%clk 0:02:54.9]} 6. Be2 {[%clk 0:02:56.2]} 6... b6 {[%clk 0:02:55.2]}
7. O-O {[%clk 0:02:55.8]} 7... Bb7 {[%clk 0:02:55.6]} 8. a4 {[%clk 0:02:52.6]}
8... a6 {[%clk 0:02:55.4]} 9. Ne5 {[%clk 0:02:42.5]} 9... Nbd7 {[%clk
0:02:50.6]} 10. f4 {[%clk 0:02:40.2]} 10... c5 {[%clk 0:02:40.4]} 11. c3 {[%clk
0:02:38.6]} 11... Ne8 {[%clk 0:02:21.9]} 12. Bh4 {[%clk 0:02:32.6]} 12... Nd6
{[%clk 0:02:13.7]} 13. Bd3 {[%clk 0:02:21.2]} 13... Nf6 {[%clk 0:02:09.4]} 14.
g4 {[%clk 0:02:11.6]} 14... Qc7 {[%clk 0:01:58.8]} 15. Bg3 {[%clk 0:02:10.3]}
15... Qd8 {[%clk 0:01:51.1]} 16. f5 {[%clk 0:02:00.2]} 16... Nfe4 {[%clk
0:01:44.5]} 17. Nxe4 {[%clk 0:01:52.5]} 17... Nxe4 {[%clk 0:01:42.2]} 18. Bxe4
{[%clk 0:01:52.2]} 18... dxe4 {[%clk 0:01:41]} 19. fxg6 {[%clk 0:01:24]} 19...
hxg6 {[%clk 0:01:38.6]} 20. Qb3 {[%clk 0:01:20.1]} 20... e6 {[%clk 0:01:19.7]}
21. Rad1 {[%clk 0:01:11.4]} 21... cxd4 {[%clk 0:01:15.3]} 22. Rxd4 {[%clk
0:01:07.7]} 22... Qg5 {[%clk 0:01:00]} 23. Bf4 {[%clk 0:00:42.3]} 23... Qh4
{[%clk 0:00:59.2]} 24. Qxb6 {[%clk 0:00:41.1]} 24... Bxe5 {[%clk 0:00:51.2]} 25.
Bxe5 {[%clk 0:00:38.9]} 25... Qxg4+ {[%clk 0:00:51.3]} 26. Bg3 {[%clk 0:00:39]}
26... Bd5 {[%clk 0:00:38.9]} 27. c4 {[%clk 0:00:38.8]} 27... Rab8 {[%clk
0:00:38.9]} 28. Qc7 {[%clk 0:00:32.6]} 28... Ba8 {[%clk 0:00:21.9]} 29. Rd7
{[%clk 0:00:25.2]} 29... Rbc8 {[%clk 0:00:11.1]} 30. Qa7 {[%clk 0:00:21.1]}
30... Qe2 {[%clk 0:00:01.9]} 31. Rdxf7 {[%clk 0:00:19.8]} 1-0

[Event "*** SCC Grand Prix: Titled Tuesday Blitz"]
[Site "Chess.com"]
[Date "2020.07.21"]
[Round "3"]
[White "WIDBIFS"]
[Black "GracefulYear"]
[Result "1-0"]
[WhiteElo "2653"]
[BlackElo "2406"]
[TimeControl "180+1"]
[EndTime "10:27:39 PDT"]
[Termination "WIDBIFS won by checkmate"]

1. d4 {[%clk 0:03:00.9]} 1... Nf6 {[%clk 0:02:59.7]} 2. Nf3 {[%clk 0:03:01.1]}
2... e6 {[%clk 0:03:00.6]} 3. Bf4 {[%clk 0:03:00.6]} 3... c5 {[%clk 0:03:01.5]}
4. e3 {[%clk 0:03:00.4]} 4... cxd4 {[%clk 0:03:01.5]} 5. exd4 {[%clk 0:03:01.3]}
5... d5 {[%clk 0:03:01.2]} 6. Nbd2 {[%clk 0:03:01.3]} 6... Nc6 {[%clk
0:02:56.2]} 7. c3 {[%clk 0:03:01.3]} 7... Bd6 {[%clk 0:02:56.7]} 8. Bg3 {[%clk
0:03:00.7]} 8... Bxg3 {[%clk 0:02:56.6]} 9. hxg3 {[%clk 0:03:01.6]} 9... a6
{[%clk 0:02:56.6]} 10. Bd3 {[%clk 0:03:01.7]} 10... b5 {[%clk 0:02:55.1]} 11. a3
{[%clk 0:03:01.4]} 11... Bd7 {[%clk 0:02:53.7]} 12. Qe2 {[%clk 0:03:01.1]} 12...
Ne7 {[%clk 0:02:43.7]} 13. Nb3 {[%clk 0:02:56.9]} 13... Nc8 {[%clk 0:02:32.4]}
14. Nc5 {[%clk 0:02:56.8]} 14... Nd6 {[%clk 0:02:29.5]} 15. Ne5 {[%clk
0:02:54.9]} 15... Nc4 {[%clk 0:02:26.2]} 16. g4 {[%clk 0:02:38.7]} 16... Bc8
{[%clk 0:02:09.5]} 17. g5 {[%clk 0:02:35.4]} 17... Nd7 {[%clk 0:02:07.6]} 18.
Ncxd7 {[%clk 0:02:28.3]} 18... Bxd7 {[%clk 0:02:06.9]} 19. f4 {[%clk 0:02:18.8]}
19... Rc8 {[%clk 0:02:01.8]} 20. Kf2 {[%clk 0:02:00.2]} 20... f6 {[%clk
0:01:56.6]} 21. Bg6+ {[%clk 0:01:28.8]} 21... Ke7 {[%clk 0:01:49]} 22. Nf7
{[%clk 0:01:29.1]} 22... hxg6 {[%clk 0:01:38.3]} 23. Nxd8 {[%clk 0:01:07.3]}
23... Rcxd8 {[%clk 0:01:35.5]} 24. gxf6+ {[%clk 0:01:07.4]} 24... gxf6 {[%clk
0:01:34.9]} 25. Qc2 {[%clk 0:01:02.9]} 25... f5 {[%clk 0:01:31.6]} 26. Qe2
{[%clk 0:01:00]} 26... Nd6 {[%clk 0:01:30.8]} 27. Qe5 {[%clk 0:01:00.3]} 27...
Ne4+ {[%clk 0:01:30.3]} 28. Ke3 {[%clk 0:01:00.6]} 28... Nf6 {[%clk 0:01:30.4]}
29. Qc7 {[%clk 0:00:59.8]} 29... Rc8 {[%clk 0:01:25.7]} 30. Qa7 {[%clk 0:00:58]}
30... Ng4+ {[%clk 0:01:23]} 31. Kf3 {[%clk 0:00:57.2]} 31... Nf6 {[%clk
0:01:15.3]} 32. Qxa6 {[%clk 0:00:56.4]} 32... Ne4 {[%clk 0:01:12.1]} 33. Qa5
{[%clk 0:00:37.1]} 33... Nd2+ {[%clk 0:01:09.6]} 34. Ke2 {[%clk 0:00:37.6]}
34... Nc4 {[%clk 0:01:06.2]} 35. Qb4+ {[%clk 0:00:38]} 35... Kf7 {[%clk
0:01:06.3]} 36. b3 {[%clk 0:00:34.3]} 36... Nb6 {[%clk 0:00:52.4]} 37. Rxh8
{[%clk 0:00:33.3]} 37... Rxh8 {[%clk 0:00:50.6]} 38. Qd6 {[%clk 0:00:33.9]}
38... Nc8 {[%clk 0:00:37.6]} 39. Qxd7+ {[%clk 0:00:32.4]} 39... Ne7 {[%clk
0:00:38.5]} 40. Kf2 {[%clk 0:00:31]} 40... Rh4 {[%clk 0:00:34.7]} 41. Kg3 {[%clk
0:00:29.4]} 41... Rg4+ {[%clk 0:00:34.3]} 42. Kf3 {[%clk 0:00:29.9]} 42... Rh4
{[%clk 0:00:32.4]} 43. Re1 {[%clk 0:00:29.1]} 43... Kf8 {[%clk 0:00:26]} 44.
Rxe6 {[%clk 0:00:28.2]} 44... Ng8 {[%clk 0:00:26.5]} 45. Re8# {[%clk 0:00:28.6]}
1-0